[Event "Early-Titled-Tuesday-Blitz-February-06-2024"]
[Site "Chess.com"]
[Date "2024.02.06"]
[Round "6"]
[White "ChessLebaneseSalah"]
[Black "Kostukov_Alex"]
[Result "1-0"]
[WhiteElo "2449"]
[BlackElo "2300"]
[TimeControl "180+1"]
[EndTime "9:07:27 PST"]
[Termination "ChessLebaneseSalah won on time"]

1. e4 {[%clk 0:03:00.9]} 1... c5 {[%clk 0:02:56.5]} 2. Nf3 {[%clk 0:03:01]} 2...
g6 {[%clk 0:02:56.3]} 3. d4 {[%clk 0:02:59.1]} 3... cxd4 {[%clk 0:02:57.2]} 4.
Nxd4 {[%clk 0:02:59.9]} 4... Bg7 {[%clk 0:02:57.7]} 5. c4 {[%clk 0:03:00.2]}
5... Nc6 {[%clk 0:02:58]} 6. Be3 {[%clk 0:03:00.3]} 6... Nf6 {[%clk 0:02:57.2]}
7. Nc3 {[%clk 0:02:59.8]} 7... O-O {[%clk 0:02:57.1]} 8. f3 {[%clk 0:03:00]}
8... Qb6 {[%clk 0:02:54.8]} 9. Na4 {[%clk 0:02:04.3]} 9... Qa5+ {[%clk
0:02:41.9]} 10. Nc3 {[%clk 0:01:54.8]} 10... Qb6 {[%clk 0:02:11]} 11. Qb3 {[%clk
0:01:36.9]} 11... Nxd4 {[%clk 0:02:04.6]} 12. Qxb6 {[%clk 0:01:35.5]} 12...
Nxf3+ {[%clk 0:01:55.5]} 13. gxf3 {[%clk 0:01:36.4]} 13... axb6 {[%clk
0:01:55.4]} 14. Bxb6 {[%clk 0:01:36.7]} 14... d6 {[%clk 0:01:48.9]} 15. a4
{[%clk 0:01:34.3]} 15... Nd7 {[%clk 0:01:39.9]} 16. Be3 {[%clk 0:01:26.1]} 16...
Ne5 {[%clk 0:01:37.5]} 17. Kf2 {[%clk 0:01:21.7]} 17... Be6 {[%clk 0:01:36.7]}
18. Nd5 {[%clk 0:01:20]} 18... Bxd5 {[%clk 0:01:24.9]} 19. cxd5 {[%clk
0:01:17.2]} 19... f5 {[%clk 0:01:25.4]} 20. f4 {[%clk 0:01:04.8]} 20... fxe4
{[%clk 0:01:17.4]} 21. Kg3 {[%clk 0:00:57.4]} 21... Nf3 {[%clk 0:00:45.8]} 22.
Ra2 {[%clk 0:00:55.1]} 22... g5 {[%clk 0:00:39.7]} 23. fxg5 {[%clk 0:00:45.6]}
23... Be5+ {[%clk 0:00:38.4]} 24. Kh3 {[%clk 0:00:42.3]} 24... Nxh2 {[%clk
0:00:31.9]} 25. Bg2 {[%clk 0:00:37]} 25... Nf3 {[%clk 0:00:27.8]} 26. b4 {[%clk
0:00:36.1]} 26... Rac8 {[%clk 0:00:26.6]} 27. Rc1 {[%clk 0:00:18.5]} 27... Rxc1
{[%clk 0:00:19.7]} 28. Bxc1 {[%clk 0:00:19.4]} 28... Rf5 {[%clk 0:00:10.4]} 29.
b5 {[%clk 0:00:17.8]} 29... h6 {[%clk 0:00:09.2]} 30. Kg4 {[%clk 0:00:14.7]}
30... Rf8 {[%clk 0:00:06.4]} 31. gxh6 {[%clk 0:00:14.9]} 31... Kh7 {[%clk
0:00:06.1]} 32. Bxf3 {[%clk 0:00:15.2]} 32... exf3 {[%clk 0:00:06.2]} 33. Be3
{[%clk 0:00:15.4]} 33... Rf7 {[%clk 0:00:01.7]} 34. a5 {[%clk 0:00:14.9]} 34...
Rf8 {[%clk 0:00:01.3]} 35. a6 {[%clk 0:00:15.1]} 35... bxa6 {[%clk 0:00:02.2]}
36. bxa6 {[%clk 0:00:15.9]} 1-0

[Event "Early-Titled-Tuesday-Blitz-February-06-2024"]
[Site "Chess.com"]
[Date "2024.02.06"]
[Round "6"]
[White "starworld123"]
[Black "Jospem"]
[Result "0-1"]
[WhiteElo "2828"]
[BlackElo "3057"]
[TimeControl "180+1"]
[EndTime "9:07:28 PST"]
[Termination "Jospem won on time"]

1. Nf3 {[%clk 0:02:54.7]} 1... c5 {[%clk 0:02:59]} 2. e3 {[%clk 0:02:53.7]} 2...
Nf6 {[%clk 0:02:59.1]} 3. d4 {[%clk 0:02:53.5]} 3... e6 {[%clk 0:02:59.7]} 4.
Be2 {[%clk 0:02:53.1]} 4... b6 {[%clk 0:03:00]} 5. O-O {[%clk 0:02:53.1]} 5...
Bb7 {[%clk 0:03:00.7]} 6. b3 {[%clk 0:02:53.6]} 6... Be7 {[%clk 0:03:00.8]} 7.
Bb2 {[%clk 0:02:54.1]} 7... O-O {[%clk 0:03:01.1]} 8. Nbd2 {[%clk 0:02:54.4]}
8... d6 {[%clk 0:03:01.3]} 9. c4 {[%clk 0:02:52.8]} 9... Nbd7 {[%clk 0:03:01.6]}
10. Qc2 {[%clk 0:02:48.3]} 10... Rc8 {[%clk 0:03:01.8]} 11. Rad1 {[%clk
0:02:49]} 11... a6 {[%clk 0:03:01.8]} 12. Rfe1 {[%clk 0:02:49.1]} 12... cxd4
{[%clk 0:03:00.3]} 13. exd4 {[%clk 0:02:42.6]} 13... Re8 {[%clk 0:02:55.4]} 14.
Qb1 {[%clk 0:02:39.2]} 14... h6 {[%clk 0:02:55.6]} 15. Bf1 {[%clk 0:02:22.9]}
15... Qc7 {[%clk 0:02:55.4]} 16. g3 {[%clk 0:02:12.3]} 16... Bf8 {[%clk
0:02:55.3]} 17. Bg2 {[%clk 0:02:11.5]} 17... Qb8 {[%clk 0:02:55.7]} 18. b4
{[%clk 0:01:48.5]} 18... b5 {[%clk 0:02:51.7]} 19. c5 {[%clk 0:01:45]} 19... Qa8
{[%clk 0:02:52]} 20. Nh4 {[%clk 0:01:36.8]} 20... Bxg2 {[%clk 0:02:50.1]} 21.
Nxg2 {[%clk 0:01:37.7]} 21... a5 {[%clk 0:02:49.9]} 22. a3 {[%clk 0:01:37.1]}
22... axb4 {[%clk 0:02:49.6]} 23. axb4 {[%clk 0:01:38]} 23... Nd5 {[%clk
0:02:50]} 24. Ne4 {[%clk 0:01:20.4]} 24... Nxb4 {[%clk 0:02:47.8]} 25. cxd6
{[%clk 0:01:18]} 25... Nd5 {[%clk 0:02:48.2]} 26. Rc1 {[%clk 0:01:10.2]} 26...
Qa6 {[%clk 0:02:41.9]} 27. Ne3 {[%clk 0:01:00]} 27... Nxe3 {[%clk 0:02:36.6]}
28. Rxe3 {[%clk 0:01:00.4]} 28... Rxc1+ {[%clk 0:02:31.6]} 29. Qxc1 {[%clk
0:00:59.4]} 29... Bxd6 {[%clk 0:02:29.2]} 30. Rc3 {[%clk 0:00:47.1]} 30... Bf8
{[%clk 0:02:17.1]} 31. Rc7 {[%clk 0:00:41.5]} 31... Rd8 {[%clk 0:02:01.7]} 32.
Qf4 {[%clk 0:00:39.2]} 32... f5 {[%clk 0:01:15.1]} 33. Qh4 {[%clk 0:00:28.6]}
33... Qa8 {[%clk 0:01:07]} 34. d5 {[%clk 0:00:23.7]} 34... fxe4 {[%clk
0:00:48.2]} 35. dxe6 {[%clk 0:00:23.5]} 35... e3 {[%clk 0:00:42.9]} 36. fxe3
{[%clk 0:00:09.8]} 36... Nf6 {[%clk 0:00:30.7]} 37. Bxf6 {[%clk 0:00:04.8]}
37... Rd1+ {[%clk 0:00:30.9]} 38. Kf2 {[%clk 0:00:05.5]} 38... Qa2+ {[%clk
0:00:30.8]} 39. Kf3 {[%clk 0:00:05]} 39... Rf1+ {[%clk 0:00:31.1]} 40. Kg4
{[%clk 0:00:04.7]} 40... Qxe6+ {[%clk 0:00:31.1]} 0-1

[Event "Early-Titled-Tuesday-Blitz-February-06-2024"]
[Site "Chess.com"]
[Date "2024.02.06"]
[Round "6"]
[White "esrosenberg"]
[Black "Yan_Dyomin2010"]
[Result "1/2-1/2"]
[WhiteElo "2438"]
[BlackElo "2584"]
[TimeControl "180+1"]
[EndTime "9:07:28 PST"]
[Termination "Game drawn by repetition"]

1. c4 {[%clk 0:03:00.9]} 1... g6 {[%clk 0:02:58.2]} 2. Nc3 {[%clk 0:02:57.2]}
2... c5 {[%clk 0:02:56.1]} 3. g3 {[%clk 0:02:53.9]} 3... Bg7 {[%clk 0:02:55.9]}
4. Bg2 {[%clk 0:02:54.6]} 4... Nc6 {[%clk 0:02:56.4]} 5. a3 {[%clk 0:02:54.8]}
5... d6 {[%clk 0:02:51.8]} 6. Nf3 {[%clk 0:02:54.1]} 6... Qd7 {[%clk 0:02:51]}
7. d3 {[%clk 0:02:44.9]} 7... b6 {[%clk 0:02:50.8]} 8. Bd2 {[%clk 0:02:39.9]}
8... Bb7 {[%clk 0:02:51.1]} 9. Rb1 {[%clk 0:02:38.9]} 9... e6 {[%clk 0:02:48.5]}
10. O-O {[%clk 0:02:37]} 10... Nge7 {[%clk 0:02:47.2]} 11. b4 {[%clk 0:02:36.7]}
11... O-O {[%clk 0:02:46.4]} 12. b5 {[%clk 0:02:36.8]} 12... Nd4 {[%clk
0:02:46.3]} 13. e3 {[%clk 0:02:32.4]} 13... Nxf3+ {[%clk 0:02:46.4]} 14. Bxf3
{[%clk 0:02:33.3]} 14... Bxf3 {[%clk 0:02:46.6]} 15. Qxf3 {[%clk 0:02:34.2]}
15... d5 {[%clk 0:02:45.1]} 16. cxd5 {[%clk 0:02:16]} 16... exd5 {[%clk
0:02:43]} 17. a4 {[%clk 0:02:10.9]} 17... d4 {[%clk 0:02:41.2]} 18. Ne4 {[%clk
0:01:59.9]} 18... Nd5 {[%clk 0:02:37.6]} 19. exd4 {[%clk 0:01:39.4]} 19... Bxd4
{[%clk 0:02:35.2]} 20. Bh6 {[%clk 0:01:34.2]} 20... Rfe8 {[%clk 0:02:32.8]} 21.
Rbe1 {[%clk 0:01:29.6]} 21... Bg7 {[%clk 0:02:19.8]} 22. Bxg7 {[%clk 0:01:27]}
22... Kxg7 {[%clk 0:02:20.7]} 23. h4 {[%clk 0:01:20.5]} 23... h5 {[%clk
0:02:18.4]} 24. Ng5 {[%clk 0:01:17.8]} 24... Nf6 {[%clk 0:02:15.3]} 25. Re3
{[%clk 0:00:38.3]} 25... Rad8 {[%clk 0:02:10.3]} 26. Rfe1 {[%clk 0:00:35.4]}
26... Rxe3 {[%clk 0:02:08.5]} 27. Rxe3 {[%clk 0:00:32.8]} 27... Re8 {[%clk
0:01:39.5]} 28. Rxe8 {[%clk 0:00:29]} 28... Nxe8 {[%clk 0:01:39.2]} 29. Qf4
{[%clk 0:00:23]} 29... Nf6 {[%clk 0:01:34.8]} 30. Ne4 {[%clk 0:00:20.9]} 30...
Qe7 {[%clk 0:01:12.7]} 31. Nxf6 {[%clk 0:00:18.7]} 31... Qxf6 {[%clk 0:01:13.6]}
32. Qe4 {[%clk 0:00:16.3]} 32... Kg8 {[%clk 0:01:07.2]} 33. Kg2 {[%clk
0:00:16.3]} 33... Kg7 {[%clk 0:01:04.6]} 34. Kg1 {[%clk 0:00:14.7]} 34... Qc3
{[%clk 0:01:05.1]} 35. Kg2 {[%clk 0:00:12.7]} 35... Kf6 {[%clk 0:01:02.1]} 36.
Qf4+ {[%clk 0:00:10.7]} 36... Ke6 {[%clk 0:01:01]} 37. Qc7 {[%clk 0:00:08.6]}
37... Qxd3 {[%clk 0:00:58.5]} 38. Qxa7 {[%clk 0:00:09]} 38... Qd5+ {[%clk
0:00:59]} 39. Kg1 {[%clk 0:00:08.9]} 39... Qd6 {[%clk 0:00:51.8]} 40. a5 {[%clk
0:00:07.7]} 40... bxa5 {[%clk 0:00:38.9]} 41. b6 {[%clk 0:00:07.7]} 41... Qd1+
{[%clk 0:00:38.8]} 42. Kg2 {[%clk 0:00:08]} 42... Qd5+ {[%clk 0:00:39]} 43. Kh2
{[%clk 0:00:07.5]} 43... Qf3 {[%clk 0:00:36.2]} 44. Kg1 {[%clk 0:00:06.9]} 44...
Qd1+ {[%clk 0:00:36.1]} 45. Kg2 {[%clk 0:00:07]} 45... Qd5+ {[%clk 0:00:35.9]}
46. Kg1 {[%clk 0:00:07.3]} 46... Qd1+ {[%clk 0:00:35.5]} 1/2-1/2

[Event "Early-Titled-Tuesday-Blitz-February-06-2024"]
[Site "Chess.com"]
[Date "2024.02.06"]
[Round "6"]
[White "viniciusrego"]
[Black "marsofsilva"]
[Result "1-0"]
[WhiteElo "2447"]
[BlackElo "2060"]
[TimeControl "180+1"]
[EndTime "9:07:28 PST"]
[Termination "viniciusrego won on time"]

1. e4 {[%clk 0:02:55.3]} 1... c5 {[%clk 0:02:59.6]} 2. Nf3 {[%clk 0:02:55.2]}
2... Nc6 {[%clk 0:02:59.4]} 3. d4 {[%clk 0:02:53.2]} 3... cxd4 {[%clk
0:02:59.2]} 4. Nxd4 {[%clk 0:02:54.1]} 4... e5 {[%clk 0:02:59.4]} 5. Nb5 {[%clk
0:02:54.2]} 5... d6 {[%clk 0:02:59.9]} 6. c4 {[%clk 0:02:37.8]} 6... Be6 {[%clk
0:02:57.3]} 7. Be2 {[%clk 0:02:36.5]} 7... Be7 {[%clk 0:02:52.5]} 8. O-O {[%clk
0:02:36.3]} 8... Nf6 {[%clk 0:02:49]} 9. N5c3 {[%clk 0:02:35.4]} 9... O-O {[%clk
0:02:47.6]} 10. Be3 {[%clk 0:02:34]} 10... a6 {[%clk 0:02:43.9]} 11. Nd2 {[%clk
0:02:33.8]} 11... Rc8 {[%clk 0:02:42.9]} 12. Nd5 {[%clk 0:02:31.8]} 12... Bxd5
{[%clk 0:02:35.8]} 13. exd5 {[%clk 0:02:28]} 13... Nd4 {[%clk 0:02:34.5]} 14.
Bd3 {[%clk 0:02:25]} 14... b5 {[%clk 0:02:31]} 15. Bxd4 {[%clk 0:02:16.9]} 15...
exd4 {[%clk 0:02:28.9]} 16. cxb5 {[%clk 0:02:14.5]} 16... axb5 {[%clk
0:02:25.3]} 17. Nb3 {[%clk 0:02:12.9]} 17... Qb6 {[%clk 0:02:14.6]} 18. Nxd4
{[%clk 0:02:11.8]} 18... Nxd5 {[%clk 0:01:59.7]} 19. Bxh7+ {[%clk 0:02:11.1]}
19... Kxh7 {[%clk 0:01:57]} 20. Qh5+ {[%clk 0:02:10.6]} 20... Kg8 {[%clk
0:01:57.2]} 21. Qxd5 {[%clk 0:02:10.8]} 21... Rc5 {[%clk 0:01:55.4]} 22. Qf3
{[%clk 0:02:08.1]} 22... Bf6 {[%clk 0:01:39.2]} 23. Rad1 {[%clk 0:02:08.4]}
23... Rg5 {[%clk 0:01:31.1]} 24. Qe3 {[%clk 0:01:33.8]} 24... Qb7 {[%clk
0:01:23.2]} 25. f3 {[%clk 0:01:17.4]} 25... Qd7 {[%clk 0:01:02.1]} 26. Kh1
{[%clk 0:01:13.3]} 26... Re8 {[%clk 0:01:01.2]} 27. Qf2 {[%clk 0:01:08.8]} 27...
Rh5 {[%clk 0:00:48.8]} 28. b3 {[%clk 0:00:55.9]} 28... b4 {[%clk 0:00:42]} 29.
Qd2 {[%clk 0:00:50.5]} 29... Qb7 {[%clk 0:00:28.5]} 30. Nc2 {[%clk 0:00:42.4]}
30... Bc3 {[%clk 0:00:19.4]} 31. Qd3 {[%clk 0:00:42.9]} 31... d5 {[%clk
0:00:13.3]} 32. a3 {[%clk 0:00:40]} 32... Qc7 {[%clk 0:00:10.1]} 33. f4 {[%clk
0:00:36.2]} 33... g5 {[%clk 0:00:09.1]} 34. Nxb4 {[%clk 0:00:31.7]} 34... gxf4
{[%clk 0:00:07.9]} 35. Nxd5 {[%clk 0:00:30.6]} 35... Rxd5 {[%clk 0:00:05.6]} 36.
Qxd5 {[%clk 0:00:31.5]} 36... Re2 {[%clk 0:00:01.7]} 37. Qf3 {[%clk 0:00:28.4]}
37... Rb2 {[%clk 0:00:01]} 38. b4 {[%clk 0:00:21.1]} 1-0

[Event "Early-Titled-Tuesday-Blitz-February-06-2024"]
[Site "Chess.com"]
[Date "2024.02.06"]
[Round "6"]
[White "MaxLeto"]
[Black "arnash_bauyrzhan"]
[Result "0-1"]
[WhiteElo "2467"]
[BlackElo "2268"]
[TimeControl "180+1"]
[EndTime "9:07:29 PST"]
[Termination "arnash_bauyrzhan won by resignation"]

1. g4 {[%clk 0:01:53.6]} 1... d6 {[%clk 0:02:52.8]} 2. Bg2 {[%clk 0:01:53.9]}
2... Nc6 {[%clk 0:02:51.7]} 3. h3 {[%clk 0:01:53.7]} 3... e5 {[%clk 0:02:50.5]}
4. c3 {[%clk 0:01:53]} 4... Be6 {[%clk 0:02:50]} 5. d4 {[%clk 0:01:53.4]} 5...
exd4 {[%clk 0:02:47.8]} 6. cxd4 {[%clk 0:01:54.3]} 6... d5 {[%clk 0:02:47.8]} 7.
Nc3 {[%clk 0:01:54]} 7... Bb4 {[%clk 0:02:38.6]} 8. Nf3 {[%clk 0:01:51.8]} 8...
Nf6 {[%clk 0:02:37.1]} 9. Qb3 {[%clk 0:01:47.8]} 9... Qd7 {[%clk 0:02:29]} 10.
Bd2 {[%clk 0:01:44.1]} 10... O-O-O {[%clk 0:02:21]} 11. O-O-O {[%clk 0:01:25.2]}
11... Bxc3 {[%clk 0:02:16.9]} 12. Bxc3 {[%clk 0:01:21.3]} 12... Ne4 {[%clk
0:02:17]} 13. Be1 {[%clk 0:01:16.1]} 13... h5 {[%clk 0:02:02.1]} 14. g5 {[%clk
0:01:15.9]} 14... f6 {[%clk 0:01:57.3]} 15. gxf6 {[%clk 0:01:11.1]} 15... gxf6
{[%clk 0:01:57.4]} 16. Kb1 {[%clk 0:01:07.1]} 16... Rhg8 {[%clk 0:01:56.3]} 17.
Bf1 {[%clk 0:01:07.8]} 17... Kb8 {[%clk 0:01:16.1]} 18. e3 {[%clk 0:00:58.3]}
18... Ne7 {[%clk 0:01:12]} 19. Rc1 {[%clk 0:00:54.6]} 19... Rc8 {[%clk
0:00:52.9]} 20. Ka1 {[%clk 0:00:54.8]} 20... Ka8 {[%clk 0:00:52.2]} 21. a3
{[%clk 0:00:50]} 21... c5 {[%clk 0:00:52.1]} 22. Bb5 {[%clk 0:00:46]} 22... Qd6
{[%clk 0:00:49.6]} 23. dxc5 {[%clk 0:00:46.5]} 23... Nxc5 {[%clk 0:00:49.3]} 24.
Qd1 {[%clk 0:00:39.4]} 24... Nb3+ {[%clk 0:00:47.9]} 25. Qxb3 {[%clk 0:00:33.9]}
25... Rxc1+ {[%clk 0:00:47.5]} 26. Ka2 {[%clk 0:00:34.8]} 26... d4 {[%clk
0:00:44.1]} 27. Nxd4 {[%clk 0:00:27.7]} 27... Bxb3+ {[%clk 0:00:43.7]} 28. Nxb3
{[%clk 0:00:28.6]} 28... Qd5 {[%clk 0:00:32.1]} 29. f3 {[%clk 0:00:21]} 29...
Rxe1 {[%clk 0:00:29.1]} 30. Rxe1 {[%clk 0:00:18.5]} 30... Qxb5 {[%clk
0:00:29.3]} 31. Nd4 {[%clk 0:00:17.6]} 31... Qc4+ {[%clk 0:00:28.6]} 32. Kb1
{[%clk 0:00:17.3]} 32... Nc6 {[%clk 0:00:28.4]} 33. Nc2 {[%clk 0:00:10.7]} 33...
Rg2 {[%clk 0:00:26.4]} 34. Rc1 {[%clk 0:00:10.1]} 34... Qb3 {[%clk 0:00:24.1]}
35. f4 {[%clk 0:00:08.4]} 35... a6 {[%clk 0:00:22.2]} 36. f5 {[%clk 0:00:08]}
36... Na5 {[%clk 0:00:22.2]} 0-1

[Event "Early-Titled-Tuesday-Blitz-February-06-2024"]
[Site "Chess.com"]
[Date "2024.02.06"]
[Round "6"]
[White "Sadykov_Ramil"]
[Black "jacky72"]
[Result "0-1"]
[WhiteElo "2602"]
[BlackElo "2812"]
[TimeControl "180+1"]
[EndTime "9:07:31 PST"]
[Termination "jacky72 won by resignation"]

1. e4 {[%clk 0:02:56.3]} 1... g6 {[%clk 0:02:58.4]} 2. d4 {[%clk 0:02:54.5]}
2... Bg7 {[%clk 0:02:58.8]} 3. c4 {[%clk 0:02:54.8]} 3... Nc6 {[%clk 0:02:55.6]}
4. Be3 {[%clk 0:02:51.5]} 4... d6 {[%clk 0:02:55.4]} 5. Nc3 {[%clk 0:02:50.4]}
5... e5 {[%clk 0:02:55.6]} 6. Nge2 {[%clk 0:02:47.1]} 6... exd4 {[%clk
0:02:54.2]} 7. Nxd4 {[%clk 0:02:46.7]} 7... Nxd4 {[%clk 0:02:54.6]} 8. Bxd4
{[%clk 0:02:46.6]} 8... Nf6 {[%clk 0:02:55.5]} 9. g3 {[%clk 0:02:38]} 9... O-O
{[%clk 0:02:54.1]} 10. Bg2 {[%clk 0:02:38.2]} 10... Re8 {[%clk 0:02:48.2]} 11.
O-O {[%clk 0:02:35.3]} 11... c6 {[%clk 0:02:45.6]} 12. Qd3 {[%clk 0:02:28.6]}
12... Be6 {[%clk 0:02:40.2]} 13. Rad1 {[%clk 0:02:23.6]} 13... Qe7 {[%clk
0:02:38.3]} 14. b3 {[%clk 0:02:20.2]} 14... Red8 {[%clk 0:02:26.7]} 15. h3
{[%clk 0:02:19.1]} 15... h5 {[%clk 0:02:26.4]} 16. Kh1 {[%clk 0:02:02.7]} 16...
h4 {[%clk 0:02:18.9]} 17. g4 {[%clk 0:02:02.3]} 17... Ne8 {[%clk 0:02:03.1]} 18.
Be3 {[%clk 0:01:43.2]} 18... Nc7 {[%clk 0:01:34.7]} 19. f4 {[%clk 0:01:41.2]}
19... f5 {[%clk 0:01:34.2]} 20. exf5 {[%clk 0:01:27.4]} 20... gxf5 {[%clk
0:01:35.1]} 21. g5 {[%clk 0:01:27.8]} 21... d5 {[%clk 0:01:34]} 22. cxd5 {[%clk
0:01:05.1]} 22... Nxd5 {[%clk 0:01:33.8]} 23. Nxd5 {[%clk 0:00:51.4]} 23... Bxd5
{[%clk 0:01:33.4]} 24. Qe2 {[%clk 0:00:42.7]} 24... Re8 {[%clk 0:01:24.5]} 25.
Rxd5 {[%clk 0:00:38]} 25... cxd5 {[%clk 0:01:02.4]} 26. Bxd5+ {[%clk 0:00:38.9]}
26... Kf8 {[%clk 0:01:02.9]} 27. Qh5 {[%clk 0:00:36.8]} 27... Rad8 {[%clk
0:01:03.4]} 28. Bc5 {[%clk 0:00:31]} 28... Rxd5 {[%clk 0:00:59.5]} 29. Bxe7+
{[%clk 0:00:27.7]} 29... Rxe7 {[%clk 0:01:00.4]} 30. Rc1 {[%clk 0:00:20.6]}
30... Rd8 {[%clk 0:00:51.2]} 31. Qh7 {[%clk 0:00:12.8]} 31... Rf7 {[%clk
0:00:44.8]} 32. Qxh4 {[%clk 0:00:12.3]} 32... Kg8 {[%clk 0:00:41.7]} 33. g6
{[%clk 0:00:07.7]} 33... Rfd7 {[%clk 0:00:42.2]} 34. Qh5 {[%clk 0:00:02.8]}
34... Rd5 {[%clk 0:00:39.7]} 35. h4 {[%clk 0:00:02.5]} 35... Kf8 {[%clk
0:00:36.2]} 36. Qh7 {[%clk 0:00:02.5]} 36... Rd4 {[%clk 0:00:20.6]} 37. h5
{[%clk 0:00:02.7]} 37... Rxf4 {[%clk 0:00:21.2]} 38. h6 {[%clk 0:00:03.2]} 38...
Rh4+ {[%clk 0:00:21.7]} 39. Kg2 {[%clk 0:00:03.2]} 39... Rxh6 {[%clk 0:00:22.6]}
0-1

[Event "Early-Titled-Tuesday-Blitz-February-06-2024"]
[Site "Chess.com"]
[Date "2024.02.06"]
[Round "6"]
[White "bylavochka"]
[Black "atalz0"]
[Result "0-1"]
[WhiteElo "2284"]
[BlackElo "2478"]
[TimeControl "180+1"]
[EndTime "9:07:31 PST"]
[Termination "atalz0 won on time"]

1. e4 {[%clk 0:03:00.9]} 1... d5 {[%clk 0:02:59.1]} 2. exd5 {[%clk 0:03:00.6]}
2... Nf6 {[%clk 0:02:59.2]} 3. d4 {[%clk 0:03:00.5]} 3... Nxd5 {[%clk
0:02:59.4]} 4. Nf3 {[%clk 0:03:00.6]} 4... Bg4 {[%clk 0:02:59]} 5. Be2 {[%clk
0:03:00.6]} 5... Nc6 {[%clk 0:02:58.5]} 6. O-O {[%clk 0:03:00.8]} 6... e6 {[%clk
0:02:58.5]} 7. c3 {[%clk 0:03:00.9]} 7... Be7 {[%clk 0:02:57.6]} 8. Nbd2 {[%clk
0:03:01.2]} 8... O-O {[%clk 0:02:56.5]} 9. Nc4 {[%clk 0:02:54.2]} 9... Bf6
{[%clk 0:02:39]} 10. Nfe5 {[%clk 0:02:47.9]} 10... Bxe2 {[%clk 0:02:37.3]} 11.
Qxe2 {[%clk 0:02:47.8]} 11... Nxe5 {[%clk 0:02:32.1]} 12. Nxe5 {[%clk
0:02:47.1]} 12... c6 {[%clk 0:02:00.6]} 13. Re1 {[%clk 0:02:43]} 13... a5 {[%clk
0:01:56.9]} 14. a4 {[%clk 0:02:29]} 14... Qc7 {[%clk 0:01:50.1]} 15. Bd2 {[%clk
0:02:17.8]} 15... Rfe8 {[%clk 0:01:42.4]} 16. Qf3 {[%clk 0:02:11]} 16... c5
{[%clk 0:01:35.9]} 17. Ng4 {[%clk 0:01:55.2]} 17... cxd4 {[%clk 0:01:26.5]} 18.
Nxf6+ {[%clk 0:01:51.9]} 18... Nxf6 {[%clk 0:01:27.4]} 19. cxd4 {[%clk
0:01:49.1]} 19... Qb6 {[%clk 0:01:24.6]} 20. Bg5 {[%clk 0:00:29.5]} 20... Qxd4
{[%clk 0:01:03.7]} 21. Red1 {[%clk 0:00:19.4]} 21... Qxb2 {[%clk 0:00:52.4]} 22.
Rab1 {[%clk 0:00:19.5]} 22... Qe5 {[%clk 0:00:41.1]} 23. Bxf6 {[%clk 0:00:13.3]}
23... Qxf6 {[%clk 0:00:42]} 24. Qxf6 {[%clk 0:00:13.6]} 24... gxf6 {[%clk
0:00:42.7]} 25. Rxb7 {[%clk 0:00:13.9]} 25... Reb8 {[%clk 0:00:31.2]} 26. Rdd7
{[%clk 0:00:09.5]} 26... Rxb7 {[%clk 0:00:31]} 27. Rxb7 {[%clk 0:00:10.4]} 27...
Rc8 {[%clk 0:00:24.7]} 28. Rb1 {[%clk 0:00:09.9]} 28... Rc4 {[%clk 0:00:24.3]}
29. Ra1 {[%clk 0:00:09.7]} 29... Kf8 {[%clk 0:00:20.2]} 30. Kf1 {[%clk
0:00:09.5]} 30... Ke7 {[%clk 0:00:20.5]} 31. Ke2 {[%clk 0:00:09.8]} 31... Kd6
{[%clk 0:00:21]} 32. Kd3 {[%clk 0:00:09.9]} 32... Kc5 {[%clk 0:00:21.4]} 33. h4
{[%clk 0:00:04.2]} 33... Rxh4 {[%clk 0:00:19.7]} 34. g3 {[%clk 0:00:02.7]} 34...
Rg4 {[%clk 0:00:16.4]} 35. Ke3 {[%clk 0:00:01.1]} 35... Kb4 {[%clk 0:00:15.2]}
36. Kf3 {[%clk 0:00:01.2]} 36... h5 {[%clk 0:00:15]} 0-1

[Event "Early-Titled-Tuesday-Blitz-February-06-2024"]
[Site "Chess.com"]
[Date "2024.02.06"]
[Round "6"]
[White "DenLaz"]
[Black "Vladimir_Zakhartsov"]
[Result "1-0"]
[WhiteElo "3059"]
[BlackElo "2828"]
[TimeControl "180+1"]
[EndTime "9:07:32 PST"]
[Termination "DenLaz won on time"]

1. d4 {[%clk 0:03:00.9]} 1... Nf6 {[%clk 0:02:58.3]} 2. c4 {[%clk 0:03:01.6]}
2... e6 {[%clk 0:02:58.7]} 3. Nf3 {[%clk 0:03:02.3]} 3... c5 {[%clk 0:02:58.8]}
4. d5 {[%clk 0:03:02.4]} 4... exd5 {[%clk 0:02:59.7]} 5. cxd5 {[%clk 0:03:03.3]}
5... b5 {[%clk 0:03:00.3]} 6. e4 {[%clk 0:03:01.1]} 6... Nxe4 {[%clk 0:03:00.4]}
7. Bxb5 {[%clk 0:02:55.3]} 7... Qa5+ {[%clk 0:02:59.7]} 8. Nfd2 {[%clk
0:02:55.7]} 8... Nd6 {[%clk 0:02:56.2]} 9. Bd3 {[%clk 0:02:47.2]} 9... Be7
{[%clk 0:02:55.4]} 10. O-O {[%clk 0:02:47.7]} 10... O-O {[%clk 0:02:53.9]} 11.
Nc3 {[%clk 0:02:48.3]} 11... Ba6 {[%clk 0:02:49.4]} 12. Nde4 {[%clk 0:02:38.5]}
12... Nxe4 {[%clk 0:02:38.4]} 13. Nxe4 {[%clk 0:02:37.2]} 13... d6 {[%clk
0:02:34.9]} 14. Bf4 {[%clk 0:02:32]} 14... Qb6 {[%clk 0:02:22.8]} 15. Re1 {[%clk
0:02:29.1]} 15... Nd7 {[%clk 0:02:03.9]} 16. Bxa6 {[%clk 0:02:08.9]} 16... Qxa6
{[%clk 0:02:04.8]} 17. Nxc5 {[%clk 0:01:53.8]} 17... Nxc5 {[%clk 0:02:05.7]} 18.
Rxe7 {[%clk 0:01:53.8]} 18... Rab8 {[%clk 0:02:06.3]} 19. b3 {[%clk 0:01:50.8]}
19... Rfe8 {[%clk 0:01:59.7]} 20. Rxe8+ {[%clk 0:01:46.8]} 20... Rxe8 {[%clk
0:02:00.6]} 21. Be3 {[%clk 0:01:39.6]} 21... Ne4 {[%clk 0:01:55.8]} 22. Qd4
{[%clk 0:01:38.4]} 22... Re7 {[%clk 0:01:46.4]} 23. h3 {[%clk 0:01:35.2]} 23...
h6 {[%clk 0:01:46.4]} 24. a4 {[%clk 0:01:21.3]} 24... Qe2 {[%clk 0:01:33.3]} 25.
b4 {[%clk 0:01:18.8]} 25... Qc2 {[%clk 0:01:20]} 26. Kh2 {[%clk 0:01:08.5]}
26... Qb3 {[%clk 0:01:00.9]} 27. Bf4 {[%clk 0:00:48.9]} 27... Nf6 {[%clk
0:00:30]} 28. Bxd6 {[%clk 0:00:47.1]} 28... Rd7 {[%clk 0:00:30.6]} 29. Bc5
{[%clk 0:00:40.9]} 29... Rxd5 {[%clk 0:00:28]} 30. Qe3 {[%clk 0:00:41.4]} 30...
Qb2 {[%clk 0:00:28.1]} 31. Re1 {[%clk 0:00:38]} 31... a6 {[%clk 0:00:21.8]} 32.
a5 {[%clk 0:00:38]} 32... Qc2 {[%clk 0:00:13.8]} 33. Qe2 {[%clk 0:00:32.8]}
33... Qxe2 {[%clk 0:00:13.9]} 34. Rxe2 {[%clk 0:00:33.7]} 34... Nd7 {[%clk
0:00:14.6]} 35. Re8+ {[%clk 0:00:31.6]} 35... Kh7 {[%clk 0:00:14.5]} 36. Rd8
{[%clk 0:00:31.9]} 36... Kg6 {[%clk 0:00:09.5]} 37. Be3 {[%clk 0:00:31.8]} 37...
Kf5 {[%clk 0:00:08.2]} 38. b5 {[%clk 0:00:30.4]} 38... axb5 {[%clk 0:00:05.5]}
39. a6 {[%clk 0:00:30.9]} 39... Nf6 {[%clk 0:00:06.1]} 40. Rb8 {[%clk
0:00:23.6]} 1-0